Workbook

Sheet Tools
A1: FONCTIONS EXCEL POUR LA VALUE AT RISK
B3: Fonction | C3: Calcul | D3: Entrée | E3: Sortie
B5: MInverse(M) | C5: Inverse la matrice | D5: Matrice carrée nxn | E5: Matrice carrée nxn
B6: MTranspose(M) | C6: Transpose la matrice | D6: Matrice ou Vecteur | E6: Matrice ou Vecteur
B7: MDeterminant(M) | C7: Déterminant de la matrice | D7: Matrice carrée nxn | E7: Nombre
B8: MProd(Mx, My) | C8: Produit matriciel | D8: 2 Matrices compatibles | E8: Matrice ou Nombre
B9: MTProd(Mx, My) | C9: Produit transposée x matrice: tMx My | D9: 2 Matrices compatibles | E9: Matrice ou Nombre
B10: MQuadProd(Mx, My) | C10: Produit quadratique: tMx My Mx | D10: 2 Matrices compatibles | E10: Nombre
B11: MQuadProdBaseR(Mx, My) | C11: Produit quadratique: Mx My inv(Mx) | D11: 2 Matrices compatibles | E11: Nombre
B12: MQuadProdBaseG(Mx, My) | C12: Produit quadratique: inv(Mx) My Mx | D12: 2 Matrices compatibles | E12: Nombre
B13: MZero(n,m) | C13: Matrice Zero | D13: Tailles n et m | E13: Matrice nxm
B14: MId(n) | C14: Matrice Identité | D14: Taille n | E14: Matrice unitaire carrée nxn
B15: MScal(n,k) | C15: Matrice Scalaire de diagonale k | D15: Taille n et k | E15: Matrice diagonale carrée nxn
B16: MDiagVP(P) | C16: Matrice diagonale quelconque | D16: Vecteur Colonne | E16: Matrice diagonale nxn
B17: MPlus(M,k) | C17: Addition d'un nombre à une matrice | D17: Matrice nxm et k | E17: Matrice nxm
B18: MMult(M,k) | C18: Multiplication d'un nombre par une matrice | D18: Matrice nxm et k | E18: Matrice nxm
B20: MCentre(M) | C20: Matrice Centrée | D20: Matrice carrée nxm | E20: Matrice carrée nxm
B21: MReduit(M) | C21: Matrice Centrée Réduite | D21: Matrice carrée nxm | E21: Matrice carrée nxm
B22: MCovariance(M) | C22: Matrice de Covariance de M | D22: Matrice carrée nxm | E22: Matrice carrée symétrique mxm
B23: MCorrelation(M) | C23: Matrice de Corrélation de M | D23: Matrice carrée nxm | E23: Matrice carrée symétrique mxm
B24: MCholesky(M) | C24: Matrice "Racine Carrée" de Cholesky | D24: Matrice carrée nxn | E24: Matrice carrée triangulaire inférieure nxn
B26: MValP(M) | C26: Valeurs Propres de M | D26: Matrice carrée nxn | E26: Vecteur horizontal n
B27: MVecP(M) | C27: Vecteurs Propres de M | D27: Matrice carrée nxn | E27: Matrice carrée nxn
B29: Halton(p,k) | C29: Nombres de Halton | D29: Base (p) er Rang (k) | E29: Nombre

Sheet Matrice
A1: FONCTIONS MATRICIELLES
B3: Matrice Mx
B4: 15 | C4: -85 | D4: 0 | E4: -20
B5: 3 | C5: 55 | D5: 6 | E5: 55
B6: -7 | C6: 1 | D6: -33 | E6: 0
B7: 2 | C7: -4 | D7: 8 | E7: 4
B9: Déterminant de la matrice
B10: =Mdeterminant($B$4:$E$7) -> -199510 | F10: =form(B10) -> =Mdeterminant($B$4:$E$7)
B11: Inverse de la matrice
B12: =_xludf.Minverse($B$4:$E$7) -> 0.07069319834 | C12: 0.06866823718 | D12: -0.1307202646 | E12: -0.5907222696 | F12: =form(B12) -> =Minverse($B$4:$E$7)
B13: 0.001613954188 | C13: 0.01092677059 | D13: -0.03247957496 | E13: -0.1421733246
B14: -0.01494661922 | C14: -0.01423487544 | D14: -0.003558718861 | E14: 0.1209964413
B15: -0.003839406546 | C15: 0.005062402887 | D15: 0.03999799509 | E15: 0.1611949276
B16: Transpose de la matrice
B17: =MTran($B$4:$E$7) -> 15 | C17: 3 | D17: -7 | E17: 2 | F17: =form(B17) -> =MTran($B$4:$E$7)
B18: -85 | C18: 55 | D18: 1 | E18: -4
B19: 0 | C19: 6 | D19: -33 | E19: 8
B20: -20 | C20: 55 | D20: 0 | E20: 4
B21: Produit de 2 matrices: Mx My
B22: =MProd($B$4:$E$7,$B$4:$E$7) -> -70 | C22: -5870 | D22: -670 | E22: -5055 | F22: =form(B22) -> =MProd($B$4:$E$7;$B$4:$E$7)
B23: 278 | C23: 2556 | D23: 572 | E23: 3185
B24: 129 | C24: 617 | D24: 1095 | E24: 195
B25: -30 | C25: -398 | D25: -256 | E25: -244
B26: Produit de 2 matrices: t(Mx) My
B27: =MTProd($B$4:$E$7,$B$4:$E$7) -> 287 | C27: -1125 | D27: 265 | E27: -127 | F27: =form(B27) -> =MTProd($B$4:$E$7;$B$4:$E$7)
B28: -1125 | C28: 10267 | D28: 265 | E28: 4709
B29: 265 | C29: 265 | D29: 1189 | E29: 362
B30: -127 | C30: 4709 | D30: 362 | E30: 3441
B31: Produit scalaire: t(Mx) Mx
B32: =MSProd($B$4:$E$7) -> 287 | C32: -1125 | D32: 265 | E32: -127 | F32: =form(B32) -> =MSProd($B$4:$E$7)
B33: -1125 | C33: 10267 | D33: 265 | E33: 4709
B34: 265 | C34: 265 | D34: 1189 | E34: 362
B35: -127 | C35: 4709 | D35: 362 | E35: 3441
B36: Produit quadratique 2 matrices: t(Mx) My Mx
B37: =MQuadProd($B$4:$E$7,$B$4:$E$7) -> -1179 | C37: -85497 | D37: -16511 | E37: -68123 | F37: =form(B37) -> =MQuadProd($B$4:$E$7;$B$4:$E$7)
B38: 21489 | C38: 641739 | D38: 90529 | E38: 606021
B39: -2829 | C39: -8209 | D39: -34751 | E39: 10723
B40: 16570 | C40: 256388 | D40: 43836 | E40: 275299
B41: Produit quadratique 2 matrices: inv(Mx) My Mx
B42: =MQuadProdBaseG($B$4:$E$7,$B$4:$E$7) -> 15 | C42: -85 | D42: -1.776356839e-15 | E42: -20 | F42: =form(B42) -> =MQuadProdBaseG($B$4:$E$7;$B$4:$E$7)
B43: 3 | C43: 55 | D43: 6 | E43: 55
B44: -7 | C44: 1 | D44: -33 | E44: 1.443289932e-15
B45: 2 | C45: -4 | D45: 8 | E45: 4
B46: Produit quadratique 2 matrices: Mx My inv(Mx)
B47: =MQuadProdBaseR($B$4:$E$7,$B$4:$E$7) -> 15 | C47: -85 | D47: 0 | E47: -20 | F47: =form(B47) -> =MQuadProdBaseR($B$4:$E$7;$B$4:$E$7)
B48: 3 | C48: 55 | D48: 6 | E48: 55
B49: -7 | C49: 1 | D49: -33 | E49: -1.065814104e-14
B50: 2 | C50: -4 | D50: 8 | E50: 4
B52: Addition à 1 matrice d'un scalaire: Mx + N | E52: 10
B53: =MPlusScal($B$4:$E$7,E52) -> 25 | C53: -75 | D53: 10 | E53: -10 | F53: =form(B53) -> =MPlusScal($B$4:$E$7;E52)
B54: 13 | C54: 65 | D54: 16 | E54: 65
B55: 3 | C55: 11 | D55: -23 | E55: 10
B56: 12 | C56: 6 | D56: 18 | E56: 14
B57: Produit de 1 matrice par un scalaire: Mx . N | E57: 10
B58: =MMultScal($B$4:$E$7,E57) -> 150 | C58: -850 | D58: 0 | E58: -200 | F58: =form(B58) -> =MMultScal($B$4:$E$7;E57)
B59: 30 | C59: 550 | D59: 60 | E59: 550
B60: -70 | C60: 10 | D60: -330 | E60: 0
B61: 20 | C61: -40 | D61: 80 | E61: 40
B63: Matrice zero
B64: =MZero(4,4) -> 0 | C64: 0 | D64: 0 | E64: 0 | F64: =form(B64) -> =MZero(4;4)
B65: 0 | C65: 0 | D65: 0 | E65: 0
B66: 0 | C66: 0 | D66: 0 | E66: 0
B67: 0 | C67: 0 | D67: 0 | E67: 0
B69: Matrice Identité
B70: =_xludf.MId(4) -> 1 | C70: 0 | D70: 0 | E70: 0 | F70: =form(B70) -> =MId(4)
B71: 0 | C71: 1 | D71: 0 | E71: 0
B72: 0 | C72: 0 | D72: 1 | E72: 0
B73: 0 | C73: 0 | D73: 0 | E73: 1
B75: Matrice Scalaire
B76: =MScal(4,5) -> 5 | C76: 0 | D76: 0 | E76: 0 | F76: =form(B76) -> =MScal(4;5)
B77: 0 | C77: 5 | D77: 0 | E77: 0
B78: 0 | C78: 0 | D78: 5 | E78: 0
B79: 0 | C79: 0 | D79: 0 | E79: 5
B81: Matrice Diag
B82: =MDiagVP(B4:B7) -> 15 | C82: 0 | D82: 0 | E82: 0 | F82: =form(B82) -> =MDiagVP(B4:B7)
B83: 0 | C83: 3 | D83: 0 | E83: 0
B84: 0 | C84: 0 | D84: -7 | E84: 0
B85: 0 | C85: 0 | D85: 0 | E85: 2

Sheet Covariance
A1: FONCTIONS MCENTRE MREDUITE MCOVARIANCE MCORRELATION
A2: MATRICE DE COVARIANCE, MATRICE DE CORRELATION
B3: Matrice Entrée
C4: 1 | D4: 2 | E4: 3 | F4: 4 | G4: 5
B5: 1 | C5: 1.0439 | D5: 0.8389 | E5: 1.0751 | F5: 123.38 | G5: 9.0623
B6: 2 | C6: 1.0422 | D6: 0.8414 | E6: 1.0709 | F6: 122.19 | G6: 9.0485
B7: 3 | C7: 1.0364 | D7: 0.83978 | E7: 1.0687 | F7: 122.43 | G7: 9.0343
B8: 4 | C8: 1.0421 | D8: 0.8424 | E8: 1.0689 | F8: 122.31 | G8: 9.026
B9: 5 | C9: 1.0444 | D9: 0.84645 | E9: 1.0706 | F9: 122.86 | G9: 9.0975
B10: 6 | C10: 1.0446 | D10: 0.85278 | E10: 1.0711 | F10: 122.6 | G10: 9.0928
B11: 7 | C11: 1.0445 | D11: 0.853 | E11: 1.0754 | F11: 122.61 | G11: 9.1078
B12: 8 | C12: 1.0401 | D12: 0.85128 | E12: 1.0714 | F12: 122.39 | G12: 9.0777
B13: 9 | C13: 1.0453 | D13: 0.853 | E13: 1.0714 | F13: 122.04 | G13: 9.0758
B14: 10 | C14: 1.0541 | D14: 0.85618 | E14: 1.0739 | F14: 123.4 | G14: 9.0863
B15: Calculs intermédiaires:
B16: MOYENNE | C16: =AVERAGE(C5:C14) -> 1.04376 | D16: =AVERAGE(D5:D14) -> 0.847517 | E16: =AVERAGE(E5:E14) -> 1.07174 | F16: =AVERAGE(F5:F14) -> 122.621 | G16: =AVERAGE(G5:G14) -> 9.0709 | H16: =form(C16) -> =MOYENNE(C5:C14)
B17: ECART TYPE | C17: =STDEVP(C5:C14) -> 0.004286303769 | D17: =STDEVP(D5:D14) -> 0.006130964117 | E17: =STDEVP(E5:E14) -> 0.002220450405 | F17: =STDEVP(F5:F14) -> 0.4416435214 | G17: =STDEVP(G5:G14) -> 0.02605279256 | H17: =form(C17) -> =ECARTYPEP(C5:C14)
B18: Matrice Centrée
C19: =mcentre(MATAA) -> 0.00014 | D19: -0.008617 | E19: 0.00336 | F19: 0.759 | G19: -0.0086 | H19: =form(C19) -> =mcentre(MATAA)
C20: -0.00156 | D20: -0.006117 | E20: -0.00084 | F20: -0.431 | G20: -0.0224
C21: -0.00736 | D21: -0.007737 | E21: -0.00304 | F21: -0.191 | G21: -0.0366
C22: -0.00166 | D22: -0.005117 | E22: -0.00284 | F22: -0.311 | G22: -0.0449
C23: 0.00064 | D23: -0.001067 | E23: -0.00114 | F23: 0.239 | G23: 0.0266
C24: 0.00084 | D24: 0.005263 | E24: -0.00064 | F24: -0.021 | G24: 0.0219
C25: 0.00074 | D25: 0.005483 | E25: 0.00366 | F25: -0.011 | G25: 0.0369
C26: -0.00366 | D26: 0.003763 | E26: -0.00034 | F26: -0.231 | G26: 0.0068
C27: 0.00154 | D27: 0.005483 | E27: -0.00034 | F27: -0.581 | G27: 0.0049
C28: 0.01034 | D28: 0.008663 | E28: 0.00216 | F28: 0.779 | G28: 0.0154
B29: Matrice de Covariance
C30: =MCovariance(MATAA) -> 1.83724e-05 | D30: 1.658168e-05 | E30: 5.3366e-06 | F30: 0.00108334 | G30: 5.8227e-05 | H30: =form(C30) -> =MCovariance(MATAA)
C31: 1.658168e-05 | D31: 3.7588721e-05 | E31: 4.77222e-06 | F31: 0.000143303 | G31: 0.000119912
C32: 5.3366e-06 | D32: 4.77222e-06 | E32: 4.9304e-06 | F32: 0.00060356 | G32: 3.487e-05
C33: 0.00108334 | D33: 0.000143303 | E33: 0.00060356 | F33: 0.195049 | G33: 0.0037152
C34: 5.8227e-05 | D34: 0.000119912 | E34: 3.487e-05 | F34: 0.0037152 | G34: 0.000678748
C36: =MMULT(TRANSPOSE(MATAA-$C$16:$G$16),(MATAA-$C$16:$G$16))/ROWS(MATAA) -> 1.83724e-05 | D36: 1.658168e-05 | E36: 5.3366e-06 | F36: 0.00108334 | G36: 5.8227e-05 | H36: =form(C36) -> =PRODUITMAT(TRANSPOSE(MATAA-$C$16:$G$16);(MATAA-$C$16:$G$16))/LIGNES(MATAA)
C37: 1.658168e-05 | D37: 3.7588721e-05 | E37: 4.77222e-06 | F37: 0.000143303 | G37: 0.000119912
C38: 5.3366e-06 | D38: 4.77222e-06 | E38: 4.9304e-06 | F38: 0.00060356 | G38: 3.487e-05
C39: 0.00108334 | D39: 0.000143303 | E39: 0.00060356 | F39: 0.195049 | G39: 0.0037152
C40: 5.8227e-05 | D40: 0.000119912 | E40: 3.487e-05 | F40: 0.0037152 | G40: 0.000678748
B41: Matrice Réduite
C42: =MReduit(MATAA) -> 0.03266217411 | D42: -1.405488572 | E42: 1.513206507 | F42: 1.718580627 | G42: -0.3300989704 | H42: =form(C42) -> =MReduit(MATAA)
C43: -0.3639499401 | D43: -0.997722362 | E43: -0.3783016267 | F43: -0.975900198 | G43: -0.8597926672
C44: -1.717097153 | D44: -1.261954866 | E44: -1.369091601 | F44: -0.4324754938 | G44: -1.404839804
C45: -0.3872800645 | D45: -0.8346158781 | E45: -1.279019785 | F45: -0.7041878459 | G45: -1.723423694
C46: 0.1493127959 | D46: -0.1740346183 | E46: -0.5134093505 | F46: 0.5411604346 | G46: 1.021003792
C47: 0.1959730447 | D47: 0.8584294248 | E47: -0.2882298108 | F47: -0.04754966162 | G47: 0.8406008666
C48: 0.1726429203 | D48: 0.8943128512 | E48: 1.64831423 | F48: -0.02490696561 | G48: 1.416354885
C49: -0.8538825518 | D49: 0.6137696989 | E49: -0.153122087 | F49: -0.5230462778 | G49: 0.2610084882
C50: 0.3592839152 | D50: 0.8943128512 | E50: -0.153122087 | F50: -1.315540638 | G50: 0.1880796459
C51: 2.412334859 | D51: 1.41299147 | E51: 0.9727756114 | F51: 1.763866019 | G51: 0.5911074587
B52: Matrice de Corrélation
C53: =MCorrelation(MATAA) -> 1 | D53: 0.6309817661 | E53: 0.5607130041 | F53: 0.5722818451 | G53: 0.521419402 | H53: =form(C53) -> =MCorrelation(MATAA)
C54: 0.6309817661 | D54: 1 | E54: 0.3505505113 | F54: 0.05292424168 | G54: 0.7507227739
C55: 0.5607130041 | D55: 0.3505505113 | E55: 1 | F55: 0.6154708781 | G55: 0.6027768832
C56: 0.5722818451 | D56: 0.05292424168 | E56: 0.6154708781 | F56: 1 | G56: 0.3228910837
C57: 0.521419402 | D57: 0.7507227739 | E57: 0.6027768832 | F57: 0.3228910837 | G57: 0.9999999999
C59: =MMULT(TRANSPOSE((MATAA-C16:G16)/C17:G17),(MATAA-C16:G16)/C17:G17)/ROWS(MATAA) -> 1 | D59: 0.6309817661 | E59: 0.5607130041 | F59: 0.5722818451 | G59: 0.521419402 | H59: =form(C59) -> =PRODUITMAT(TRANSPOSE((MATAA-C16:G16)/C17:G17);(MATAA-C16:G16)/C17:G17)/LIGNES(MATAA)
C60: 0.6309817661 | D60: 1 | E60: 0.3505505113 | F60: 0.05292424168 | G60: 0.750722774
C61: 0.5607130041 | D61: 0.3505505113 | E61: 1 | F61: 0.6154708781 | G61: 0.6027768832
C62: 0.5722818451 | D62: 0.05292424168 | E62: 0.6154708781 | F62: 1 | G62: 0.3228910837
C63: 0.521419402 | D63: 0.750722774 | E63: 0.6027768832 | F63: 0.3228910837 | G63: 1

Sheet Cholesky
A1: FONCTION CHOLESKY
A2: MATRICE DE CHOLESKY
B3: Matrice Entrée
C4: 1 | D4: 2 | E4: 3 | F4: 4 | G4: 5
B5: 1 | C5: 1 | D5: 0.6309817661 | E5: 0.5607130041 | F5: 0.5722818451 | G5: 0.521419402
B6: 2 | C6: 0.6309817661 | D6: 1 | E6: 0.3505505113 | F6: 0.05292424168 | G6: 0.750722774
B7: 3 | C7: 0.5607130041 | D7: 0.3505505113 | E7: 1 | F7: 0.6154708781 | G7: 0.6027768832
B8: 4 | C8: 0.5722818451 | D8: 0.05292424168 | E8: 0.6154708781 | F8: 1 | G8: 0.3228910837
B9: 5 | C9: 0.521419402 | D9: 0.750722774 | E9: 0.6027768832 | F9: 0.3228910837 | G9: 1
B11: Matrice Sortie
C12: =C4 -> 1 | D12: =D4 -> 2 | E12: =E4 -> 3 | F12: =F4 -> 4 | G12: =G4 -> 5
B13: =+B5 -> 1 | C13: =MCholesky(C5:G9) -> 1 | D13: 0 | E13: 0 | F13: 0 | G13: 0 | H13: =form(C13) -> =MCholesky(C5:G9)
B14: =+B6 -> 2 | C14: 0.6309817661 | D14: 0.7757976611 | E14: 0 | F14: 0 | G14: 0
B15: =+B7 -> 3 | C15: 0.5607130041 | D15: -0.004188167201 | E15: 0.8279996294 | F15: 0 | G15: 0
B16: =+B8 -> 4 | C16: 0.5722818451 | D16: -0.3972365258 | E16: 0.3537698595 | F16: 0.6241342154 | G16: 0
B17: =+B9 -> 5 | C17: 0.521419402 | D17: 0.5435910161 | E17: 0.3776413454 | F17: 0.1711623953 | G17: 0.5106085225
C19: =MMULT(C13:G17,TRANSPOSE(C13:G17))-C5:G9 -> 0 | D19: 0 | E19: 0 | F19: 0 | G19: 0
C20: 0 | D20: 0 | E20: 0 | F20: -2.081668171e-17 | G20: 1.110223025e-16
C21: 0 | D21: 0 | E21: 0 | F21: 0 | G21: 0
C22: 0 | D22: -2.081668171e-17 | E22: 0 | F22: 0 | G22: 0
C23: 0 | D23: 1.110223025e-16 | E23: 0 | F23: 0 | G23: 0

Sheet ValVecPropres
A1: FONCTIONS VALP et VECP
A2: VALEURS PROPRES ET VECTEURS PROPRES
B3: Matrice Entrée
C4: 1 | D4: 2 | E4: 3 | F4: 4 | G4: 5
B5: 1 | C5: 1.83724e-05 | D5: 1.658168e-05 | E5: 5.3366e-06 | F5: 0.00108334 | G5: 5.8227e-05
B6: 2 | C6: 1.658168e-05 | D6: 3.7588721e-05 | E6: 4.77222e-06 | F6: 0.000143303 | G6: 0.000119912
B7: 3 | C7: 5.3366e-06 | D7: 4.77222e-06 | E7: 4.9304e-06 | F7: 0.00060356 | G7: 3.487e-05
B8: 4 | C8: 0.00108334 | D8: 0.000143303 | E8: 0.00060356 | F8: 0.195049 | G8: 0.0037152
B9: 5 | C9: 5.8227e-05 | D9: 0.000119912 | E9: 3.487e-05 | F9: 0.0037152 | G9: 0.000678748
B11: Valeurs Propres
C12: =MvalP(C5:G9) -> 0.1951279913 | D12: 0.0006343467137 | E12: 2.057147996e-05 | F12: 3.75361428e-06 | G12: 1.976449658e-06 | H12: =form(C12) -> =MvalP(C5:G9)
C13: =vprpgm(C5:G9) -> 0.1951284488 | H13: =form(C13) -> =vprpgm(C5:G9)
B14: Vecteurs Propres
C15: =Mvecp(C5:G9) -> 0.0055571908 | D15: 0.06404211341 | E15: 0.60358411 | F15: 0.7508687736 | G15: -0.2602883637 | H15: =form(C15) -> =Mvecp(C5:G9)
C16: 0.0007466884741 | D16: 0.1939631901 | E16: 0.773578108 | F16: -0.5737034111 | G16: 0.1865985806
C17: 0.003096183849 | D17: 0.03768235571 | E17: 0.001976086043 | F17: 0.3229828833 | G17: 0.9456471889
C18: 0.9997969644 | D18: -0.0193060779 | E18: -0.0002502410842 | F18: -0.005740013267 | G18: -0.0005431583693
C19: 0.01910507184 | D19: 0.9780001043 | E19: -0.1930263336 | F19: 0.05205372407 | G19: -0.05640954312
C21: =MMULT(C5:G9,C15:G19) -> 0.001084363478 | D21: 4.062490418e-05 | E21: 1.241661842e-05 | F21: 2.818471751e-06 | G21: -5.144468474e-07 | H21: =form(C21) -> =PRODUITMAT(C5:G9;C15:G19)
C22: 0.0001456998221 | D22: 0.0001230399122 | E22: 1.591364655e-05 | F22: -2.153461317e-06 | G22: 3.688027008e-07
C23: 0.000604152135 | D23: 2.390367851e-05 | E23: 4.065101445e-08 | F23: 1.212353163e-06 | G23: 1.869024063e-06
C24: 0.1950883733 | D24: -1.224674707e-05 | E24: -5.14782945e-09 | F24: -2.154579577e-08 | G24: -1.073525173e-09
C25: 0.003727934291 | D25: 0.0006203911521 | E25: -3.970837353e-06 | F25: 1.95389602e-07 | G25: -1.114906222e-07
C27: =C21/C15 -> 0.1951279913 | D27: 0.0006343467137 | E27: 2.057147996e-05 | F27: 3.75361428e-06 | G27: 1.976449658e-06 | H27: =form(C27) -> =C21/C15
C28: 0.1951279913 | D28: 0.0006343467137 | E28: 2.057147996e-05 | F28: 3.75361428e-06 | G28: 1.976449658e-06
C29: 0.1951279913 | D29: 0.0006343467137 | E29: 2.057147996e-05 | F29: 3.75361428e-06 | G29: 1.976449658e-06
C30: 0.1951279913 | D30: 0.0006343467137 | E30: 2.057147996e-05 | F30: 3.75361428e-06 | G30: 1.976449658e-06
C31: 0.1951279913 | D31: 0.0006343467137 | E31: 2.057147996e-05 | F31: 3.753614281e-06 | G31: 1.976449658e-06
C33: =C27-C12 -> 0 | D33: =D27-D12 -> 0 | E33: =E27-E12 -> 0 | F33: =F27-F12 -> 0 | G33: =G27-G12 -> 0 | H33: =SUM(C33:G33) -> 0

Sheet Halton
A1: FONCTION HALTON
A2: NOMBRES DE HALTON
B4: p | C4: k | D4: Halton | F4: p | G4: k | H4: Halton
B5: 3 | C5: 1 | D5: =halton(B5,C5) -> 0.3333333333 | F5: 5 | G5: 1 | H5: =halton(F5,G5) -> 0.2
B6: 3 | C6: =C5+1 -> 2 | D6: =halton(B6,C6) -> 0.6666666667 | F6: 5 | G6: =G5+1 -> 2 | H6: =halton(F6,G6) -> 0.4
B7: 3 | C7: =C6+1 -> 3 | D7: 0.1111111111 | F7: 5 | G7: =G6+1 -> 3 | H7: 0.6
B8: 3 | C8: =C7+1 -> 4 | D8: 0.4444444444 | F8: 5 | G8: =G7+1 -> 4 | H8: 0.8
B9: 3 | C9: 5 | D9: 0.7777777778 | F9: 5 | G9: 5 | H9: 0.04
B10: 3 | C10: 6 | D10: 0.2222222222 | F10: 5 | G10: 6 | H10: 0.24
B11: 3 | C11: 7 | D11: 0.5555555556 | F11: 5 | G11: 7 | H11: 0.44
B12: 3 | C12: 8 | D12: 0.8888888889 | F12: 5 | G12: 8 | H12: 0.64
B13: 3 | C13: 9 | D13: 0.03703703704 | F13: 5 | G13: 9 | H13: 0.84
B14: 3 | C14: 10 | D14: 0.3703703704 | F14: 5 | G14: 10 | H14: 0.08
B15: 3 | C15: 11 | D15: 0.7037037037 | F15: 5 | G15: 11 | H15: 0.28
B16: 3 | C16: 12 | D16: 0.1481481481 | F16: 5 | G16: 12 | H16: 0.48
B17: 3 | C17: 13 | D17: 0.4814814815 | F17: 5 | G17: 13 | H17: 0.68

Sheet Calcul Matriciel
A1: MATRICES - Exemples
B3: PRINCIPE DE SAISIE | D3: SI L'ARGUMENT DE SORTIE EST UNE TABLE | H3: SELECTIONNER LA ZONE DE SORTIE EN PREMIER
H4: SAISIR LA FORMULE
H5: PUIS SAISIR LA SEQUENCE SUIVANTE : CTRL + MAJ et ENTER
A8: ADDITION DE DEUX MATRICES | D8: Somme des cellules en référence relative | M8: Fonction
A9: FONCTION ALGEBRIQUE: PLUS (+)
C10: A | E10: + | G10: B | I10: = | K10: S
B12: 3 | C12: -2 | D12: 6 | F12: 4 | G12: 0 | H12: 4 | J12: =B12:D13+F12:H13 -> 7 | K12: -2 | L12: 10 | M12: =form(J12) -> =B12:D13+F12:H13
B13: 2 | C13: -7 | D13: -6 | F13: -6 | G13: 1 | H13: 0 | J13: -4 | K13: -6 | L13: -6
A15: MULTIPLICATION PAR UN NOMBRE | D15: Multiplication des cellules en référence absolue
A16: FONCTION ALGEBRIQUE: MULTIPLICATION (*)
D17: a | E17: x | G17: A | I17: = | K17: aA
D19: 5 | F19: 3 | G19: -2 | H19: 6 | J19: =D19*F19:H20 -> 15 | K19: -10 | L19: 30 | M19: =form(J19) -> =D19*F19:H20
F20: 2 | G20: -7 | H20: -6 | J20: 10 | K20: -35 | L20: -30
A22: DETERMINANT D'UNE MATRICE | D22: Fonction DETERMAT avec un argument table en entrée et un argument cellule en sortie
A23: FONCTION: DETERMAT
C24: A | J24: DET(A)
B26: 3 | C26: -2 | J26: =MDETERM(B26:C27) -> -17 | M26: =form(J26) -> =DETERMAT(B26:C27)
B27: 2 | C27: -7
A29: TRANSPOSEE D'UNE MATRICE | D29: Fonction TRANSPOSE avec un argument table en entrée et en sortie
A30: FONCTION MATRICIELLE: TRANSPOSE
C31: A | J31: TA
J33: =TRANSPOSE(B34:D35) -> 3 | K33: 2 | M33: =form(J33) -> =TRANSPOSE(B34:D35)
B34: 3 | C34: -2 | D34: 6 | J34: -2 | K34: -7
B35: 2 | C35: -7 | D35: -6 | J35: 6 | K35: -6
A37: PRODUIT DE DEUX MATRICES | D37: Fonction PRODUITMAT avec deux arguments Table en entrée, et un argument Table en sortie
A38: FONCTION MATRICIELLE: PRODUITMAT
C39: A | G39: B | K39: AB
F41: 1 | G41: 2 | H41: 3
B42: 1 | C42: -2 | D42: 3 | F42: -1 | G42: -2 | H42: -3 | J42: =MMULT(B42:D43,F41:H43) -> 15 | K42: 21 | L42: 21 | M42: =form(J42) -> =PRODUITMAT(B42:D43;F41:H43)
B43: 4 | C43: 5 | D43: -6 | F43: 4 | G43: 5 | H43: 4 | J43: -25 | K43: -32 | L43: -27
A46: INVERSE D'UNE MATRICE | D46: Fonction INVERSEMAT avec un argument table en entrée et en sortie
A47: FONCTION MATRICIELLE: INVERSEMAT
C48: A | J48: A-1
J50: =+MINVERSE(B51:D53) -> -0.02076124567 | K50: -0.06920415225 | L50: 0.169550173 | M50: =form(J50) -> =+INVERSEMAT(B51:D53)
B51: 3 | C51: 7 | D51: 6 | J51: 0.09688581315 | K51: -0.01038062284 | L51: -0.124567474
B52: -8 | C52: -7 | D52: 8 | J52: 0.06401384083 | K52: 0.04671280277 | L52: 0.06055363322
B53: 3 | C53: -2 | D53: 4
A55: PRODUIT SCALAIRE | D55: Fonction PRODUITMAT avec un argument table en entrée et en sortie
A56: FONCTION MATRICIELLE: PRODUITMAT
C57: A | F57: B | J57: AB
J59: =MMULT(B60:D60,F60:F62) -> -4 | M59: =form(J59) -> =PRODUITMAT(B60:D60;F60:F62)
B60: 3 | C60: 7 | D60: 6 | F60: 1
F61: -1
F62: 0
A64: PRODUIT EXTERNE | D64: Fonction PRODUITMAT avec 2 arguments Table en entrée et une Table en sortie
A65: FONCTION MATRICIELLE: PRODUITMAT
C66: B | F66: A | J66: BA
J68: =MMULT(C69:C71,E69:G69) -> 3 | K68: 7 | L68: 6 | M68: =form(J68) -> =PRODUITMAT(C69:C71;E69:G69)
C69: 1 | E69: 3 | F69: 7 | G69: 6 | J69: -3 | K69: -7 | L69: -6
C70: -1 | J70: 0 | K70: 0 | L70: 0
C71: 0
A73: PRODUIT D'UNE MATRICE | D73: Fonction PRODUITMAT avec deux arguments Table en entrée, et un argument Table en sortie
A74: ET DE SA TRANSPOSEE
A75: FONCTION MATRICIELLE: PRODUITMAT
C76: A | G76: ATA | K76: TAA
B78: 13 | C78: -8 | D78: -3 | F78: =MMULT(B78:D80,TRANSPOSE(B78:D80)) -> 242 | G78: -181 | H78: -64 | J78: =MMULT(TRANSPOSE(B78:D80),B78:D80) -> 242 | K78: -181 | L78: -64 | M78: =form(J78) -> =PRODUITMAT(TRANSPOSE(B78:D80);B78:D80)
B79: -8 | C79: 10 | D79: -1 | F79: -181 | G79: 165 | H79: 3 | J79: -181 | K79: 165 | L79: 3
B80: -3 | C80: -1 | D80: 11 | F80: -64 | G80: 3 | H80: 131 | J80: -64 | K80: 3 | L80: 131
A82: TRACE D'UNE MATRICE CARREE | D82: Fonctions SOMME, INVERSEMAT et PRODUITMAT
C84: A | K84: Trace(A)
B86: 13 | C86: -8 | D86: -3 | K86: =SUM(B86:D88*MMULT(B86:D88,MINVERSE(B86:D88))) -> 34 | M86: =form(K86) -> =SOMME(B86:D88*PRODUITMAT(B86:D88;INVERSEMAT(B86:D88)))
B87: -8 | C87: 10 | D87: -1
B88: -3 | C88: -1 | D88: 11
A90: TRACE DU PRODUIT | D90: Fonctions SOMME et TRANSPOSE
A91: DE 2 MATRICES
A92: PRODUIT SIMPLE
C93: A | G93: B | K93: Trace(AB)
B95: 13 | C95: -8 | D95: -3 | F95: 34 | G95: -5 | H95: -24 | K95: =SUM((B95:D97*TRANSPOSE(F95:H97))) -> 873 | M95: =form(K95) -> =SOMME((B95:D97*TRANSPOSE(F95:H97)))
B96: -8 | C96: 10 | D96: -1 | F96: 6 | G96: 3 | H96: 18
B97: -3 | C97: -1 | D97: 11 | F97: 15 | G97: -37 | H97: 33 | K97: =SUM((TRANSPOSE(B95:D97)*(F95:H97))) -> 873 | M97: =form(K97) -> =SOMME((TRANSPOSE(B95:D97)*(F95:H97)))

Sheet Exercice1
A1: MATRICES Exercices - Application avec Autocorrection
A4: ADDITION DE DEUX MATRICES
B5: matrice A | F5: matrice B | L5: A+B
B6: 15 | C6: -85 | D6: 0 | F6: 8 | G6: 78 | H6: 0 | I6: OK | J6: =AND(L6:N9=ExoCorrec1!L6:N9) -> FALSE | O6: =form(L6) -> 
B7: 0 | C7: 55 | D7: 6 | F7: 88 | G7: 0 | H7: 6
B8: -7 | C8: 0 | D8: -33 | F8: 4 | G8: 1 | H8: 5
B9: 2 | C9: -4 | D9: 8 | F9: -7 | G9: -22 | H9: -77
A11: MULTIPLICATION PAR UN NOMBRE
B12: matrice A | F12: scalaire b | L12: A.b
B13: 15 | C13: -85 | D13: 0 | F13: 8 | I13: OK | J13: =AND(L13:N16=ExoCorrec1!L13:N16) -> FALSE | O13: =form(L13) -> 
B14: 0 | C14: 55 | D14: 6
B15: -7 | C15: 0 | D15: -33
B16: 2 | C16: -4 | D16: 8
A18: DETERMINANT D'UNE MATRICE
B19: matrice A | L19: determinant (A)
B20: 15 | C20: -85 | D20: 0 | E20: 5 | I20: OK | J20: =AND(L20=ExoCorrec1!L20) -> FALSE | O20: =form(L20) -> 
B21: 0 | C21: 55 | D21: 6 | E21: 1
B22: -7 | C22: 0 | D22: -33 | E22: 8
B23: 2 | C23: -4 | D23: 8 | E23: 7
A25: TRANSPOSEE D'UNE MATRICE
B26: matrice A | L26: AT
B27: 15 | C27: -85 | D27: 0 | I27: OK | J27: =AND(L27:P29=ExoCorrec1!L27:P29) -> FALSE | Q27: =form(N27) -> 
B28: 0 | C28: 55 | D28: 6
B29: -7 | C29: 0 | D29: -33
B30: 2 | C30: -4 | D30: 8
A32: PRODUIT DE DEUX MATRICES
B33: matrice A | F33: matrice B | L33: A.B
B34: 15 | C34: -85 | D34: 0 | F34: 8 | G34: 78 | H34: 0 | I34: OK | J34: =AND(L34:N37=ExoCorrec1!L34:N37) -> FALSE | O34: =form(L34) -> 
B35: 0 | C35: 55 | D35: 6 | F35: 88 | G35: 0 | H35: 6
B36: -7 | C36: 0 | D36: -33 | F36: 4 | G36: 1 | H36: 5
B37: 2 | C37: -4 | D37: 8
A39: INVERSE D'UNE MATRICE
B40: matrice A | L40: A-1
B41: 15 | C41: -85 | D41: 0 | I41: OK | J41: =AND(L41:N43=ExoCorrec1!L41:N43) -> FALSE | O41: =form(L41) -> 
B42: 5 | C42: 55 | D42: 6
B43: -7 | C43: 0 | D43: -33
A45: PRODUIT SCALAIRE
B46: vecteur A | G46: vecteur B | L46: A.B
B47: 15 | C47: 8 | D47: -7 | E47: 14 | G47: 1 | I47: OK | J47: =AND(L47=ExoCorrec1!L47) -> FALSE | O47: =form(L47) -> 
G48: 0
G49: 5
G50: 3
A52: PRODUIT D'UNE MATRICE ET DE SA TRANSPOSEE
B54: matrice A | L54: A.AT
B55: 15 | C55: -85 | D55: 0 | I55: OK | J55: =AND(L55:N57=ExoCorrec1!L55:N57) -> FALSE | O55: =form(L55) -> 
B56: 5 | C56: 55 | D56: 6
B57: -7 | C57: 0 | D57: -33
L59: AT.A
I60: OK | J60: =AND(L60:N62=ExoCorrec1!L60:N62) -> FALSE | O60: =form(L60) -> 
A64: RESOLUTION D'UN SYSTEME D'EQUATIONS
M72: A-1,x
B73: 13 | C73: a + | D73: -8 | E73: b + | F73: -3 | G73: c = | H73: 20 | I73: OK | J73: =AND(M73:M75=ExoCorrec1!M73:M75) -> FALSE | L73: a= | O73: =form(M73) -> 
B74: -8 | C74: a + | D74: 10 | E74: b + | F74: -1 | G74: c = | H74: -5 | L74: b=
B75: -3 | C75: a + | D75: -1 | E75: b + | F75: 11 | G75: c = | H75: 0 | L75: c=
L76: vérification | M76: A,x
B77: premier membre: A | D77: 13 | E77: -8 | F77: -3 | G77: sec membre: B | H77: 20 | I77: OK | J77: =AND(M77:M79=ExoCorrec1!M77:M79) -> FALSE | O77: =form(M77) -> 
D78: -8 | E78: 10 | F78: -1 | H78: -5
D79: -3 | E79: -1 | F79: 11 | H79: 0
A81: CALCUL DE LA TRACE D'UNE MATRICE CARREE
B83: matrice A | L83: trace (A)
B84: 15 | C84: -85 | D84: 0 | I84: OK | J84: =AND(L84=ExoCorrec1!L84) -> FALSE | O84: =form(L84) -> 
B85: 5 | C85: 55 | D85: 6
B86: -7 | C86: 0 | D86: -33
A88: CALCUL DE LA TRACE DU PRODUIT DE DEUX MATRICES CARREES
B90: matrice A | F90: matrice B | L90: trace (AB)
B91: 15 | C91: -85 | D91: 0 | F91: 12 | G91: 2 | H91: 23 | I91: OK | J91: =AND(L91=ExoCorrec1!L91) -> FALSE | O91: =form(L91) -> 
B92: 5 | C92: 55 | D92: 6 | F92: -34 | G92: 0 | H92: 5 | L92: trace (BA)
B93: -7 | C93: 0 | D93: -33 | F93: 38 | G93: -11 | H93: 3 | I93: OK | J93: =AND(L93=ExoCorrec1!L93) -> FALSE | O93: =form(L93) -> 

Sheet ExoCorrec1 (hidden)
A1: MATRICES Exercices - Application avec Autocorrection
A4: ADDITION DE DEUX MATRICES
B5: matrice A | F5: matrice B | L5: A+B
B6: 15 | C6: -85 | D6: 0 | F6: 8 | G6: 78 | H6: 0 | I6: OK | L6: =B6:D9+F6:H9 -> 23 | M6: -7 | N6: 0 | O6: =form(L6) -> =B6:D9+F6:H9
B7: 0 | C7: 55 | D7: 6 | F7: 88 | G7: 0 | H7: 6 | L7: 88 | M7: 55 | N7: 12
B8: -7 | C8: 0 | D8: -33 | F8: 4 | G8: 1 | H8: 5 | L8: -3 | M8: 1 | N8: -28
B9: 2 | C9: -4 | D9: 8 | F9: -7 | G9: -22 | H9: -77 | L9: -5 | M9: -26 | N9: -69
A11: MULTIPLICATION PAR UN NOMBRE
B12: matrice A | F12: scalaire b | L12: A.b
B13: 15 | C13: -85 | D13: 0 | F13: 8 | I13: OK | L13: =B13:D16*F13 -> 120 | M13: -680 | N13: 0 | O13: =form(L13) -> =B13:D16*F13
B14: 0 | C14: 55 | D14: 6 | L14: 0 | M14: 440 | N14: 48
B15: -7 | C15: 0 | D15: -33 | L15: -56 | M15: 0 | N15: -264
B16: 2 | C16: -4 | D16: 8 | L16: 16 | M16: -32 | N16: 64
A18: DETERMINANT D'UNE MATRICE
B19: matrice A | L19: determinant (A)
B20: 15 | C20: -85 | D20: 0 | E20: 5 | I20: OK | L20: =MDETERM(B20:E23) -> -212325 | O20: =form(L20) -> =DETERMAT(B20:E23)
B21: 0 | C21: 55 | D21: 6 | E21: 1
B22: -7 | C22: 0 | D22: -33 | E22: 8
B23: 2 | C23: -4 | D23: 8 | E23: 7
A25: TRANSPOSEE D'UNE MATRICE
B26: matrice A | L26: AT
B27: 15 | C27: -85 | D27: 0 | I27: OK | L27: =TRANSPOSE(B27:D30) -> 15 | M27: 0 | N27: -7 | O27: 2 | Q27: =form(N27) -> =TRANSPOSE(B27:D30)
B28: 0 | C28: 55 | D28: 6 | L28: -85 | M28: 55 | N28: 0 | O28: -4
B29: -7 | C29: 0 | D29: -33 | L29: 0 | M29: 6 | N29: -33 | O29: 8
B30: 2 | C30: -4 | D30: 8
A32: PRODUIT DE DEUX MATRICES
B33: matrice A | F33: matrice B | L33: A.B
B34: 15 | C34: -85 | D34: 0 | F34: 8 | G34: 78 | H34: 0 | I34: OK | L34: =MMULT(B34:D37,F34:H36) -> -7360 | M34: 1170 | N34: -510 | O34: =form(L34) -> =PRODUITMAT(B34:D37;F34:H36)
B35: 0 | C35: 55 | D35: 6 | F35: 88 | G35: 0 | H35: 6 | L35: 4864 | M35: 6 | N35: 360
B36: -7 | C36: 0 | D36: -33 | F36: 4 | G36: 1 | H36: 5 | L36: -188 | M36: -579 | N36: -165
B37: 2 | C37: -4 | D37: 8 | L37: -304 | M37: 164 | N37: 16
A39: INVERSE D'UNE MATRICE
B40: matrice A | L40: A-1
B41: 15 | C41: -85 | D41: 0 | I41: OK | L41: =MINVERSE(B41:D43) -> 0.04816878981 | M41: 0.07444267516 | N41: 0.01353503185 | O41: =form(L41) -> =INVERSEMAT(B41:D43)
B42: 5 | C42: 55 | D42: 6 | L42: -0.00326433121 | M42: 0.01313694268 | N42: 0.002388535032
B43: -7 | C43: 0 | D43: -33 | L43: -0.01021762208 | M43: -0.01579087049 | N43: -0.03317409766
A45: PRODUIT SCALAIRE
B46: vecteur A | G46: vecteur B | L46: A.B
B47: 15 | C47: 8 | D47: -7 | E47: 14 | G47: 1 | I47: OK | L47: =MMULT(B47:E47,G47:G50) -> 22 | O47: =form(L47) -> =PRODUITMAT(B47:E47;G47:G50)
G48: 0
G49: 5
G50: 3
A52: PRODUIT D'UNE MATRICE ET DE SA TRANSPOSEE
B54: matrice A | L54: A.AT
B55: 15 | C55: -85 | D55: 0 | I55: OK | L55: =MMULT(B55:D57,TRANSPOSE(B55:D57)) -> 7450 | M55: -4600 | N55: -105 | O55: =form(L55) -> =PRODUITMAT(B55:D57;TRANSPOSE(B55:D57))
B56: 5 | C56: 55 | D56: 6 | L56: -4600 | M56: 3086 | N56: -233
B57: -7 | C57: 0 | D57: -33 | L57: -105 | M57: -233 | N57: 1138
L59: AT.A
I60: OK | L60: =MMULT(TRANSPOSE(B55:D57),B55:D57) -> 299 | M60: -1000 | N60: 261 | O60: =form(L60) -> =PRODUITMAT(TRANSPOSE(B55:D57);B55:D57)
L61: -1000 | M61: 10250 | N61: 330
L62: 261 | M62: 330 | N62: 1125
A64: RESOLUTION D'UN SYSTEME D'EQUATIONS
M72: A-1,x
B73: 13 | C73: a + | D73: -8 | E73: b + | F73: -3 | G73: c = | H73: 20 | I73: OK | L73: a= | M73: =MMULT(MINVERSE(D77:F79),H77:H79) -> 3 | O73: =form(M73) -> =PRODUITMAT(INVERSEMAT(D77:F79);H77:H79)
B74: -8 | C74: a + | D74: 10 | E74: b + | F74: -1 | G74: c = | H74: -5 | L74: b= | M74: 2
B75: -3 | C75: a + | D75: -1 | E75: b + | F75: 11 | G75: c = | H75: 0 | L75: c= | M75: 1
L76: vérification | M76: A,x
B77: premier membre: A | D77: 13 | E77: -8 | F77: -3 | G77: sec membre: B | H77: 20 | I77: OK | M77: =MMULT(D77:F79,M73:M75) -> 20 | O77: =form(M77) -> =PRODUITMAT(D77:F79;M73:M75)
D78: -8 | E78: 10 | F78: -1 | H78: -5 | M78: -5
D79: -3 | E79: -1 | F79: 11 | H79: 0 | M79: -1.776356839e-15
A81: CALCUL DE LA TRACE D'UNE MATRICE CARREE
B83: matrice A | L83: trace (A)
B84: 15 | C84: -85 | D84: 0 | I84: OK | L84: =SUM(B84:D86*MMULT(B84:D86,MINVERSE(B84:D86))) -> 37 | O84: =form(L84) -> =SOMME(B84:D86*PRODUITMAT(B84:D86;INVERSEMAT(B84:D86)))
B85: 5 | C85: 55 | D85: 6
B86: -7 | C86: 0 | D86: -33
A88: CALCUL DE LA TRACE DU PRODUIT DE DEUX MATRICES CARREES
B90: matrice A | F90: matrice B | L90: trace (AB)
B91: 15 | C91: -85 | D91: 0 | F91: 12 | G91: 2 | H91: 23 | I91: OK | L91: =SUM((B91:D93*TRANSPOSE(F91:H93))) -> 2754 | O91: =form(L91) -> =SOMME((B91:D93*TRANSPOSE(F91:H93)))
B92: 5 | C92: 55 | D92: 6 | F92: -34 | G92: 0 | H92: 5 | L92: trace (BA)
B93: -7 | C93: 0 | D93: -33 | F93: 38 | G93: -11 | H93: 3 | I93: OK | L93: =SUM((TRANSPOSE(B91:D93)*(F91:H93))) -> 2754 | O93: =form(L93) -> =SOMME((TRANSPOSE(B91:D93)*(F91:H93)))

Sheet Exercice2
A1: MATRICES Exercices 2
A4: CALCUL DU PRODUIT MATRICIEL D'UNE MATRICE PAR SA TRANSPOSEE
B7: 11 | C7: 3 | D7: 5 | E7: 8 | H7: OK | I7: =AND(J7:M10=ExoCorrec2!J7:M10) -> FALSE | N7: =form(K7) -> 
B8: 1 | C8: 12 | D8: 14 | E8: -6
B9: -22 | C9: 3 | D9: 5 | E9: 4
B10: 11 | C10: 6 | D10: 4 | E10: 12
J11: matrice symétrique
A12: MATRICE DE CHOLESKY DE LA MATRICE SUIVANTE
B15: =J7:M10 -> 0 | C15: 0 | D15: 0 | E15: 0 | H15: OK | I15: =AND(J15:M18=ExoCorrec2!J15:M18) ->  | N15: =form(M15) -> 
B16: 0 | C16: 0 | D16: 0 | E16: 0
B17: 0 | C17: 0 | D17: 0 | E17: 0
B18: 0 | C18: 0 | D18: 0 | E18: 0
A20: VERIFICATION PAR LE CALCUL DU CARRE DE LA MATRICE DE CHOLESKY: A . TA
J21: A.AT
B22: =J15:M18 -> 0 | C22: 0 | D22: 0 | E22: 0 | H22: OK | I22: =AND(J22:M25=ExoCorrec2!J22:M25) ->  | N22: =form(M22) -> 
B23: 0 | C23: 0 | D23: 0 | E23: 0
B24: 0 | C24: 0 | D24: 0 | E24: 0
B25: 0 | C25: 0 | D25: 0 | E25: 0
A27: DETERMINANT DE LA MATRICE INITIALE
B29: =+J7:M10 -> 0 | C29: 0 | D29: 0 | E29: 0 | H29: OK | I29: =AND(J29=ExoCorrec2!J29) -> FALSE | K29: =form(J29) -> 
B30: 0 | C30: 0 | D30: 0 | E30: 0
B31: 0 | C31: 0 | D31: 0 | E31: 0
B32: 0 | C32: 0 | D32: 0 | E32: 0
A34: DETERMINANT DE LA MATRICE DE CHOLESKY ET SON CARRE
B36: =+J15:M18 -> 0 | C36: 0 | D36: 0 | E36: 0 | H36: OK | I36: =AND(J36=ExoCorrec2!J36) ->  | K36: =form(J36) -> 
B37: 0 | C37: 0 | D37: 0 | E37: 0 | J37: CARRE
B38: 0 | C38: 0 | D38: 0 | E38: 0 | H38: OK | I38: =AND(J38=ExoCorrec2!J38) ->  | K38: =form(J38) -> 
B39: 0 | C39: 0 | D39: 0 | E39: 0
A41: VECTEURS PROPRES et VALEURS PROPRES D'UNE MATRICE
J42: Valeurs Propres
B43: =B15:E18 -> 0 | C43: 0 | D43: 0 | E43: 0 | H43: OK | I43: =AND(J43:M43=ExoCorrec2!J43:M43) ->  | N43: =form(M43) -> 
B44: 0 | C44: 0 | D44: 0 | E44: 0
B45: 0 | C45: 0 | D45: 0 | E45: 0 | J45: Vecteurs Propres, matrice de passage P
B46: 0 | C46: 0 | D46: 0 | E46: 0 | H46: OK | I46: =AND(J46:M49=ExoCorrec2!J46:M49) ->  | N46: =form(M46) -> 
A51: VERIFICATION
B53: PRODUIT DES VALEURS PROPRES | H53: OK | I53: =AND(J53=ExoCorrec2!J53) ->  | K53: =form(J53) -> 
B55: DETERMINANT DE LA MATRICE DE PASSAGE | H55: OK | I55: =AND(J55=ExoCorrec2!J55) ->  | K55: =form(J55) -> 
B56: (matrice de passage = matrice des vecteurs propres)
B57: NORME DES VECTEURS PROPRES | H57: OK | I57: =AND(J57:M57=ExoCorrec2!J57:M57) ->  | N57: =form(M57) -> 
B58: Utilisez la fonction SOMME.CARRES
B60: Produit de la matrice par le premier vecteur propre | H60: OK | I60: =AND(J60:J63=ExoCorrec2!J60:J63) ->  | K60: =form(J60) -> 
B65: Division de ce produit par le vecteur propre lui même | H65: OK | I65: =AND(J65:J68=ExoCorrec2!J65:J68) ->  | K65: =form(J65) -> 
A70: COMPLEMENT: SECONDE MANIERE D'OBTENIR UNE MATRICE RACINE CARRE
B72: Obtenir la matrice diagonale des valeurs propres | J72: Matrice Diagonale: D
H73: OK | I73: =AND(J73:M76=ExoCorrec2!J73:M76) ->  | N73: =form(M73) -> 
B78: Prendre les racines carrés des éléments diagonaux | H78: OK | I78: =AND(J78:M81=ExoCorrec2!J78:M81) ->  | N78: =form(M78) -> 
B83: Calculer P D P-1 , on obtient une matrice racine carrée | H83: OK | I83: =AND(J83:M86=ExoCorrec2!J83:M86) ->  | N83: =form(M83) -> 
B88: Vérification | H88: OK | I88: =AND(J88:M91=ExoCorrec2!J88:M91) ->  | N88: =form(M88) -> 

Sheet ExoCorrec2 (hidden)
A1: MATRICES Exercices
A4: CALCUL DU PRODUIT MATRICIEL D'UNE MATRICE PAR SA TRANSPOSEE | G4: On obtient une matrice symétrique
B7: 11 | C7: 3 | D7: 5 | E7: 8 | J7: =MMULT(B7:E10,TRANSPOSE(B7:E10)) -> 219 | K7: 69 | L7: -176 | M7: 255
B8: 1 | C8: 12 | D8: 14 | E8: -6 | J8: 69 | K8: 377 | L8: 60 | M8: 67
B9: -22 | C9: 3 | D9: 5 | E9: 4 | J9: -176 | K9: 60 | L9: 534 | M9: -156
B10: 11 | C10: 6 | D10: 4 | E10: 12 | J10: 255 | K10: 67 | L10: -156 | M10: 317
A12: MATRICE DE CHOLESKY DE LA MATRICE SUIVANTE
B15: =J7:M10 -> 219 | C15: 69 | D15: -176 | E15: 255 | J15: =cholesky(B15:E18) -> 
B16: 69 | C16: 377 | D16: 60 | E16: 67
B17: -176 | C17: 60 | D17: 534 | E17: -156
B18: 255 | C18: 67 | D18: -156 | E18: 317
A20: VERIFICATION PAR LE CALCUL DU CARRE DE LA MATRICE DE CHOLESKY: A . TA
B22: =J15:M18 ->  | J22: =MMULT(B22:E25,TRANSPOSE(B22:E25)) -> 
A27: DETERMINANT DE LA MATRICE INITIALE
B29: =+J7:M10 -> 219 | C29: 69 | D29: -176 | E29: 255 | J29: =MDETERM(B29:E32) -> 320123664
B30: 69 | C30: 377 | D30: 60 | E30: 67
B31: -176 | C31: 60 | D31: 534 | E31: -156
B32: 255 | C32: 67 | D32: -156 | E32: 317
A34: DETERMINANT DE LA MATRICE DE CHOLESKY ET SON CARRE
B36: =+J15:M18 ->  | J36: =MDETERM(B36:E39) -> 
H38: CARRE | J38: =J36*J36 -> 
A41: VECTEURS PROPRES et VALEURS PROPRES D'UNE MATRICE
J42: Valeurs Propres
B43: =B15:E18 -> 219 | C43: 69 | D43: -176 | E43: 255 | J43: =Valp(B43:E46) -> 
B44: 69 | C44: 377 | D44: 60 | E44: 67
B45: -176 | C45: 60 | D45: 534 | E45: -156 | J45: Vecteurs Propres, matrice de passage P
B46: 255 | C46: 67 | D46: -156 | E46: 317 | J46: =Vecp(B43:E46) -> 
A51: VERIFICATION
B53: PRODUIT DES VALEURS PROPRES | J53: =PRODUCT(J43:M43) -> 
B55: DETERMINANT DE LA MATRICE DE PASSAGE | J55: =MDETERM(J46:M49) -> 
B57: NORME DES VECTEURS PROPRES | J57: =SUMSQ(J46:J49) ->  | K57: =SUMSQ(K46:K49) -> 
B58: Utilisez la fonction SOMME.CARRES
B60: Produit de la matrice par le premier vecteur propre | J60: =MMULT(B43:E46,J46:J49) -> 
B65: Division de ce produit par le vecteur propre lui même | J65: =J60:J63/J46:J49 -> 
A70: COMPLEMENT: SECONDE MANIERE D'OBTENIR UNE MATRICE RACINE CARRE
B72: Obtenir la matrice diagonale des valeurs propres | J72: Matrice Diagonale: D
J73: =J43 ->  | K73: 0 | L73: 0 | M73: 0
J74: 0 | K74: =K43 ->  | L74: 0 | M74: 0
J75: 0 | K75: 0 | L75: =L43 ->  | M75: 0
J76: 0 | K76: 0 | L76: 0 | M76: =M43 -> 
B78: Prendre les racines carrés des éléments diagonaux | J78: =SQRT(J73) ->  | K78: 0 | L78: 0 | M78: 0
J79: 0 | K79: =SQRT(K74) ->  | L79: 0 | M79: 0
J80: 0 | K80: 0 | L80: =SQRT(L75) ->  | M80: 0
J81: 0 | K81: 0 | L81: 0 | M81: =SQRT(M76) -> 
B83: Calculer P D P-1 , on obtient une matrice racine carrée | J83: =MMULT((J46:M49),MMULT(J78:M81,MINVERSE(J46:M49))) -> 
B88: Vérification | J88: =MMULT(J83:M86,TRANSPOSE(J83:M86)) -> 

Sheet Rates
C1: ccy pour 1 eur | D1: USD | E1: GBP | F1: CHF
D2: 1 | E2: =D2+1 -> 2 | F2: =E2+1 -> 3 | N2: CENTILE
C3: MIN | I3: =form(J3) ->  | M3: 0.05
C4: MAX | M4: histo | N4: =PERCENTILE(N9:N775,M3) -> -41175.62498 | O4: =form(N4) -> =CENTILE(N9:N775;M3)
C5: MOY | M5: param
C6: STD | I6: =ECARTYPEP(J9:J775) | J6: =STDEVP(J9:J775) -> 0.005892187268 | N6: PL HISTO
J7: RETURN | N7: USD
C8: DATES | D8: =D1 -> USD | E8: =E1 -> GBP | F8: =F1 -> CHF | I8: =form(J8) ->  | N8: =CalculVAR!F9 -> 4608681.079
B9: 1 | C9: 2015-01-02 | D9: 1.2043 | J9: =-LN(D10/D9) -> 0.01068546773 | N9: =$N$8*J9 -> 49245.91294
B10: =B9+1 -> 2 | C10: 2015-01-05 | D10: 1.1915 | J10: =-LN(D11/D10) -> 8.393134421e-05 | N10: =$N$8*J10 -> 386.812798
B11: =B10+1 -> 3 | C11: 2015-01-06 | D11: 1.1914 | J11: 0.006990973935 | N11: 32219.1693
B12: 4 | C12: 2015-01-07 | D12: 1.1831 | J12: 0.005339221972 | N12: 24606.77128
B13: 5 | C13: 2015-01-08 | D13: 1.1768 | J13: -0.003816636667 | N13: -17589.66119
B14: 6 | C14: 2015-01-09 | D14: 1.1813 | J14: 0.0007621628857 | N14: 3512.565671
B15: 7 | C15: 2015-01-12 | D15: 1.1804 | J15: 0.001865513981 | N15: 8597.558988
B16: 8 | C16: 2015-01-13 | D16: 1.1782 | J16: 0.000594303197 | N16: 2738.953899
B17: 9 | C17: 2015-01-14 | D17: 1.1775 | J17: 0.005706271073 | N17: 26298.38353
B18: 10 | C18: 2015-01-15 | D18: 1.1708 | J18: 0.01030228892 | N18: 47479.96403
B19: 11 | C19: 2015-01-16 | D19: 1.1588 | J19: -0.001465959819 | N19: -6756.141282
B20: 12 | C20: 2015-01-19 | D20: 1.1605 | J20: 0.002242927096 | N20: 10336.93567
B21: 13 | C21: 2015-01-20 | D21: 1.1579 | J21: -0.001208355058 | N21: -5568.923093
B22: 14 | C22: 2015-01-21 | D22: 1.1593 | J22: -0.002154151882 | N22: -9927.799021
B23: 15 | C23: 2015-01-22 | D23: 1.1618 | J23: 0.03682042864 | N23: 169693.6128
B24: 16 | C24: 2015-01-23 | D24: 1.1198 | J24: -0.004099462118 | N24: -18893.1135
B25: 17 | C25: 2015-01-26 | D25: 1.1244 | J25: -0.005498905209 | N25: -25342.70039
B26: 18 | C26: 2015-01-27 | D26: 1.1306 | J26: -0.003355411537 | N26: -15464.02166
B27: 19 | C27: 2015-01-28 | D27: 1.1344 | J27: 0.002559690704 | N27: 11796.79812
B28: 20 | C28: 2015-01-29 | D28: 1.1315 | J28: 0.0008841733556 | N28: 4074.873015
B29: 21 | C29: 2015-01-30 | D29: 1.1305 | J29: -0.0004421843981 | N29: -2037.886869
B30: 22 | C30: 2015-02-02 | D30: 1.131 | J30: -0.005818582933 | N30: -26815.99307
B31: 23 | C31: 2015-02-03 | D31: 1.1376 | J31: -0.006134450926 | N31: -28271.72791
B32: 24 | C32: 2015-02-04 | D32: 1.1446 | J32: 0.003150160113 | N32: 14518.08331
B33: 25 | C33: 2015-02-05 | D33: 1.141 | J33: -0.003237523062 | N33: -14920.71128
B34: 26 | C34: 2015-02-06 | D34: 1.1447 | J34: 0.01513980155 | N34: 69774.51694
B35: 27 | C35: 2015-02-09 | D35: 1.1275 | J35: -0.001949318356 | N35: -8983.786625
B36: 28 | C36: 2015-02-10 | D36: 1.1297 | J36: -0.001503693176 | N36: -6930.04229
B37: 29 | C37: 2015-02-11 | D37: 1.1314 | J37: -0.00123664003 | N37: -5699.27951
B38: 30 | C38: 2015-02-12 | D38: 1.1328 | J38: -0.004667761348 | N38: -21512.22341
B39: 31 | C39: 2015-02-13 | D39: 1.1381 | J39: -0.002369565372 | N39: -10920.5711
B40: 32 | C40: 2015-02-16 | D40: 1.1408 | J40: -0.0006134163098 | N40: -2827.040141
B41: 33 | C41: 2015-02-17 | D41: 1.1415 | J41: 0.003774086193 | N41: 17393.55963
B42: 34 | C42: 2015-02-18 | D42: 1.1372 | J42: -0.00131816004 | N42: -6074.979234
B43: 35 | C43: 2015-02-19 | D43: 1.1387 | J43: 0.007846634925 | N43: 36162.63792
B44: 36 | C44: 2015-02-20 | D44: 1.1298 | J44: 0 | N44: 0
B45: 37 | C45: 2015-02-23 | D45: 1.1298 | J45: -0.002651818048 | N45: -12221.38366
B46: 38 | C46: 2015-02-24 | D46: 1.1328 | J46: -0.001587721953 | N46: -7317.304124
B47: 39 | C47: 2015-02-25 | D47: 1.1346 | J47: 0.002559238921 | N47: 11794.71599
B48: 40 | C48: 2015-02-26 | D48: 1.1317 | J48: 0.006827175518 | N48: 31464.27464
B49: 41 | C49: 2015-02-27 | D49: 1.124 | J49: 0.001157252989 | N49: 5333.409954
B50: 42 | C50: 2015-03-02 | D50: 1.1227 | J50: 0.005269045457 | N50: 24283.3501
B51: 43 | C51: 2015-03-03 | D51: 1.1168 | J51: 0.003947609648 | N51: 18193.27389
B52: 44 | C52: 2015-03-04 | D52: 1.1124 | J52: 0.004956527968 | N52: 22843.05667
B53: 45 | C53: 2015-03-05 | D53: 1.1069 | J53: 0.009622441711 | N53: 44346.76505
B54: 46 | C54: 2015-03-06 | D54: 1.0963 | J54: 0.009439652187 | N54: 43504.34643
B55: 47 | C55: 2015-03-09 | D55: 1.086 | J55: 0.01129746251 | N55: 52066.40169
B56: 48 | C56: 2015-03-10 | D56: 1.0738 | J56: 0.01501247936 | N56: 69187.72956
B57: 49 | C57: 2015-03-11 | D57: 1.0578 | J57: -0.003303292136 | N57: -15223.81997
B58: 50 | C58: 2015-03-12 | D58: 1.0613 | J58: 0.003870668038 | N58: 17838.67455
B59: 51 | C59: 2015-03-13 | D59: 1.0572 | J59: 0.001419849734 | N59: 6543.634607
B60: 52 | C60: 2015-03-16 | D60: 1.0557 | J60: -0.007361301645 | N60: -33925.89161
B61: 53 | C61: 2015-03-17 | D61: 1.0635 | J61: 0.004051449458 | N61: 18671.83846
B62: 54 | C62: 2015-03-18 | D62: 1.0592 | J62: -0.007992896002 | N62: -36836.70857
B63: 55 | C63: 2015-03-19 | D63: 1.0677 | J63: -0.009229543912 | N63: -42536.0244
B64: 56 | C64: 2015-03-20 | D64: 1.0776 | J64: -0.01254166199 | N64: -57800.52033
B65: 57 | C65: 2015-03-23 | D65: 1.0912 | J65: -0.003476355161 | N65: -16021.41226
B66: 58 | C66: 2015-03-24 | D66: 1.095 | J66: -0.003191249574 | N66: -14707.45153
B67: 59 | C67: 2015-03-25 | D67: 1.0985 | J67: 0.001092995828 | N67: 5037.269192
B68: 60 | C68: 2015-03-26 | D68: 1.0973 | J68: 0.01071978748 | N68: 49404.08171
B69: 61 | C69: 2015-03-27 | D69: 1.0856 | J69: 0.001013778254 | N69: 4672.180657
B70: 62 | C70: 2015-03-30 | D70: 1.0845 | J70: 0.007961530667 | N70: 36692.15575
B71: 63 | C71: 2015-03-31 | D71: 1.0759 | J71: 0.0003718508921 | N71: 1713.742171
B72: 64 | C72: 2015-04-01 | D72: 1.0755 | J72: -0.006949298293 | N72: -32027.09956
B73: 65 | C73: 2015-04-02 | D73: 1.083 | J73: -0.001568483045 | N73: -7228.638133
B74: 66 | C74: 2015-04-07 | D74: 1.0847 | J74: =-LN(D75/D74) -> -0.001381915555 | N74: =$N$8*J74 -> -6368.80807
B75: =B74+1 -> 67 | C75: 2015-04-08 | D75: 1.0862 | J75: 0.008134635354 | N75: 37489.94004
B76: 68 | C76: 2015-04-09 | D76: 1.0774 | J76: 0.01911602438 | N76: 88099.65985
B77: 69 | C77: 2015-04-10 | D77: 1.057 | J77: 0.001704384467 | N77: 7854.964445
B78: 70 | C78: 2015-04-13 | D78: 1.0552 | J78: -0.00113657902 | N78: -5238.130224
B79: 71 | C79: 2015-04-14 | D79: 1.0564 | J79: -0.00141890957 | N79: -6539.301687
B80: 72 | C80: 2015-04-15 | D80: 1.0579 | J80: -0.01240034678 | N80: -57149.24357
B81: 73 | C81: 2015-04-16 | D81: 1.0711 | J81: -0.009570340177 | N81: -44106.6457
B82: 74 | C82: 2015-04-17 | D82: 1.0814 | J82: 0.008450623722 | N82: 38946.22965
B83: 75 | C83: 2015-04-20 | D83: 1.0723 | J83: 0.00214722577 | N83: 9895.87878
B84: 76 | C84: 2015-04-21 | D84: 1.07 | J84: -0.004010638217 | N84: -18483.75246
B85: 77 | C85: 2015-04-22 | D85: 1.0743 | J85: -0.002695795265 | N85: -12424.06063
B86: 78 | C86: 2015-04-23 | D86: 1.0772 | J86: -0.004815715919 | N86: -22194.09884
B87: 79 | C87: 2015-04-24 | D87: 1.0824 | J87: 0.0001847916479 | N87: 851.6457715
B88: 80 | C88: 2015-04-27 | D88: 1.0822 | J88: -0.009655691368 | N88: -44500.00212
B89: 81 | C89: 2015-04-28 | D89: 1.0927 | J89: -0.006840283865 | N89: -31524.68682
B90: 82 | C90: 2015-04-29 | D90: 1.1002 | J90: -0.01917509352 | N90: -88371.89069
B91: 83 | C91: 2015-04-30 | D91: 1.1215 | J91: 0.005633313954 | N91: 25962.14743
B92: 84 | C92: 2015-05-04 | D92: 1.1152 | J92: 0.003143385767 | N92: 14486.86251
B93: 85 | C93: 2015-05-05 | D93: 1.1117 | J93: -0.0101133005 | N93: -46608.97666
B94: 86 | C94: 2015-05-06 | D94: 1.123 | J94: -0.00665633698 | N94: -30676.9343
B95: 87 | C95: 2015-05-07 | D95: 1.1305 | J95: 0.007458083047 | N95: 34371.92623
B96: 88 | C96: 2015-05-08 | D96: 1.1221 | J96: 0.007065271084 | N96: 32561.58117
B97: 89 | C97: 2015-05-11 | D97: 1.1142 | J97: -0.008668120938 | N97: -39948.60496
B98: 90 | C98: 2015-05-12 | D98: 1.1239 | J98: 0.001602849853 | N98: 7387.023792
B99: 91 | C99: 2015-05-13 | D99: 1.1221 | J99: -0.01749161204 | N99: -80613.26144
B100: 92 | C100: 2015-05-14 | D100: 1.1419 | J100: 0.008001097768 | N100: 36874.5079
B101: 93 | C101: 2015-05-15 | D101: 1.1328 | J101: -0.005370440341 | N101: -24750.64679
B102: 94 | C102: 2015-05-18 | D102: 1.1389 | J102: 0.01852150957 | N102: 85359.73069
B103: 95 | C103: 2015-05-19 | D103: 1.118 | J103: 0.005561051196 | N103: 25629.11143
B104: 96 | C104: 2015-05-20 | D104: 1.1118 | J104: -0.001348254215 | N104: -6213.673692
B105: 97 | C105: 2015-05-21 | D105: 1.1133 | J105: -0.002780644928 | N105: -12815.10567
B106: 98 | C106: 2015-05-22 | D106: 1.1164 | J106: 0.01680104555 | N106: 77430.66072
B107: 99 | C107: 2015-05-25 | D107: 1.0978 | J107: 0.004748000154 | N107: 21882.01847
B108: 100 | C108: 2015-05-26 | D108: 1.0926 | J108: 0.005782750522 | N108: 26650.85292
B109: 101 | C109: 2015-05-27 | D109: 1.0863 | J109: -0.003033229956 | N109: -13979.18951
B110: 102 | C110: 2015-05-28 | D110: 1.0896 | J110: -0.00676852488 | N110: -31193.97255
B111: 103 | C111: 2015-05-29 | D111: 1.097 | J111: 0.002372913407 | N111: 10936.00112
B112: 104 | C112: 2015-06-01 | D112: 1.0944 | J112: -0.007736806444 | N112: -35656.47347
B113: 105 | C113: 2015-06-02 | D113: 1.1029 | J113: -0.009475322437 | N113: -43668.73924
B114: 106 | C114: 2015-06-03 | D114: 1.1134 | J114: -0.01630253022 | N114: -75133.16258
B115: 107 | C115: 2015-06-04 | D115: 1.1317 | J115: 0.008786388898 | N115: 40493.66427
B116: 108 | C116: 2015-06-05 | D116: 1.1218 | J116: 0.00500447872 | N116: 23064.04639
B117: 109 | C117: 2015-06-08 | D117: 1.1162 | J117: -0.007764083444 | N117: -35782.18447
B118: 110 | C118: 2015-06-09 | D118: 1.1249 | J118: -0.002663353847 | N118: -12274.54848
B119: 111 | C119: 2015-06-10 | D119: 1.1279 | J119: 0.004175742374 | N119: 19244.66487
B120: 112 | C120: 2015-06-11 | D120: 1.1232 | J120: 0.001068947189 | N120: 4926.436684
B121: 113 | C121: 2015-06-12 | D121: 1.122 | J121: 0.0001782690084 | N121: 821.5850061
B122: 114 | C122: 2015-06-15 | D122: 1.1218 | J122: 0.000267463114 | N122: 1232.652193
B123: 115 | C123: 2015-06-16 | D123: 1.1215 | J123: -0.005690421686 | N123: -26225.33876
B124: 116 | C124: 2015-06-17 | D124: 1.1279 | J124: -0.01102158139 | N124: -50794.95363
B125: 117 | C125: 2015-06-18 | D125: 1.1404 | J125: 0.009249944823 | N125: 42630.04569
B126: 118 | C126: 2015-06-19 | D126: 1.1299 | J126: -0.004062892005 | N126: -18724.57351
B127: 119 | C127: 2015-06-22 | D127: 1.1345 | J127: 0.01250626083 | N127: 57637.36768
B128: 120 | C128: 2015-06-23 | D128: 1.1204 | J128: -0.0008029620809 | N128: -3700.59615
B129: 121 | C129: 2015-06-24 | D129: 1.1213 | J129: 0.0006244703357 | N129: 2877.98462
B130: 122 | C130: 2015-06-25 | D130: 1.1206 | J130: 0.0003570153555 | N130: 1645.369914
B131: 123 | C131: 2015-06-26 | D131: 1.1202 | J131: 0.006178663041 | N131: 28475.48745
B132: 124 | C132: 2015-06-29 | D132: 1.1133 | J132: -0.005017482079 | N132: -23123.97472
B133: 125 | C133: 2015-06-30 | D133: 1.1189 | J133: 0.007986044507 | N133: 36805.13222
B134: 126 | C134: 2015-07-01 | D134: 1.11 | J134: 0.003067763842 | N134: 14138.34518
B135: 127 | C135: 2015-07-02 | D135: 1.1066 | J135: -0.002707338537 | N135: -12477.25989
B136: 128 | C136: 2015-07-03 | D136: 1.1096 | J136: 0.007962401822 | N136: 36696.17062
B137: 129 | C137: 2015-07-06 | D137: 1.1008 | J137: 0.007019491879 | N137: 32350.59941
B138: 130 | C138: 2015-07-07 | D138: 1.0931 | J138: =-LN(D139/D138) -> -0.00847192496 | N138: =$N$8*J138 -> -39044.40027
B139: =B138+1 -> 131 | C139: 2015-07-08 | D139: 1.1024 | J139: -0.00271763914 | N139: -12524.73208
B140: 132 | C140: 2015-07-09 | D140: 1.1054 | J140: -0.01178124153 | N140: -54295.98493
B141: 133 | C141: 2015-07-10 | D141: 1.1185 | J141: 0.01223366881 | N141: 56381.07798
B142: 134 | C142: 2015-07-13 | D142: 1.1049 | J142: 0.001630435144 | N142: 7514.155598
B143: 135 | C143: 2015-07-14 | D143: 1.1031 | J143: 0.001996370899 | N143: 9200.636789
B144: 136 | C144: 2015-07-15 | D144: 1.1009 | J144: 0.01298244601 | N144: 59831.95328
B145: 137 | C145: 2015-07-16 | D145: 1.0867 | J145: -0.002022431283 | N145: -9320.740789
B146: 138 | C146: 2015-07-17 | D146: 1.0889 | J146: 0.003403710567 | N146: 15686.61649
B147: 139 | C147: 2015-07-20 | D147: 1.0852 | J147: -0.001381279284 | N147: -6365.875701
B148: 140 | C148: 2015-07-21 | D148: 1.0867 | J148: -0.003215584561 | N148: -14819.60373
B149: 141 | C149: 2015-07-22 | D149: 1.0902 | J149: -0.008858100933 | N149: -40824.16217
B150: 142 | C150: 2015-07-23 | D150: 1.0999 | J150: 0.005469974437 | N150: 25209.36769
B151: 143 | C151: 2015-07-24 | D151: 1.0939 | J151: -0.01081976278 | N151: -49864.836
B152: 144 | C152: 2015-07-27 | D152: 1.1058 | J152: 0.002988726583 | N152: 13774.08765
B153: 145 | C153: 2015-07-28 | D153: 1.1025 | J153: -0.0004534119325 | N153: -2089.630994
B154: 146 | C154: 2015-07-29 | D154: 1.103 | J154: 0.006822860218 | N154: 31444.38679
B155: 147 | C155: 2015-07-30 | D155: 1.0955 | J155: -0.001094790731 | N155: -5045.541326
B156: 148 | C156: 2015-07-31 | D156: 1.0967 | J156: 0.001459987484 | N156: 6728.616696
B157: 149 | C157: 2015-08-03 | D157: 1.0951 | J157: -0.002006933715 | N157: -9249.31744
B158: 150 | C158: 2015-08-04 | D158: 1.0973 | J158: 0.008235771295 | N158: 37956.04334
B159: 151 | C159: 2015-08-05 | D159: 1.0883 | J159: -0.0001837559726 | N159: -846.8726741
B160: 152 | C160: 2015-08-06 | D160: 1.0885 | J160: -0.005131505808 | N160: -23649.47373
B161: 153 | C161: 2015-08-07 | D161: 1.0941 | J161: -0.001735081025 | N161: -7996.435092
B162: 154 | C162: 2015-08-10 | D162: 1.096 | J162: -0.00863053279 | N162: -39775.37317
B163: 155 | C163: 2015-08-11 | D163: 1.1055 | J163: -0.009005013575 | N163: -41501.23568
B164: 156 | C164: 2015-08-12 | D164: 1.1155 | J164: 0.004132237285 | N164: 19044.16379
B165: 157 | C165: 2015-08-13 | D165: 1.1109 | J165: -0.005565543989 | N165: -25649.81728
B166: 158 | C166: 2015-08-14 | D166: 1.1171 | J166: 0.00637602627 | N166: 29385.07163
B167: 159 | C167: 2015-08-17 | D167: 1.11 | J167: 0.003610112224 | N167: 16637.8559
B168: 160 | C168: 2015-08-18 | D168: 1.106 | J168: 0.001719379637 | N168: 7924.072402
B169: 161 | C169: 2015-08-19 | D169: 1.1041 | J169: -0.01277915159 | N169: -58895.03414
B170: 162 | C170: 2015-08-20 | D170: 1.1183 | J170: -0.008725126577 | N170: -40211.32577
B171: 163 | C171: 2015-08-21 | D171: 1.1281 | J171: -0.01896623715 | N171: -87409.33829
B172: 164 | C172: 2015-08-24 | D172: 1.1497 | J172: -0.0007825066695 | N172: -3606.323682
B173: 165 | C173: 2015-08-25 | D173: 1.1506 | J173: 0.009079859832 | N173: 41846.17821
B174: 166 | C174: 2015-08-26 | D174: 1.1402 | J174: 0.01040298547 | N174: 47944.0423
B175: 167 | C175: 2015-08-27 | D175: 1.1284 | J175: 0.001418943126 | N175: 6539.456336
B176: 168 | C176: 2015-08-28 | D176: 1.1268 | J176: 0.004714682042 | N176: 21728.46592
B177: 169 | C177: 2015-08-31 | D177: 1.1215 | J177: -0.00187074127 | N177: -8621.649894
B178: 170 | C178: 2015-09-01 | D178: 1.1236 | J178: -0.001689565117 | N178: -7786.666786
B179: 171 | C179: 2015-09-02 | D179: 1.1255 | J179: 0.002312756768 | N179: 10658.75836
B180: 172 | C180: 2015-09-03 | D180: 1.1229 | J180: 0.008137032423 | N180: 37500.98737
B181: 173 | C181: 2015-09-04 | D181: 1.1138 | J181: -0.0007180039799 | N181: -3309.051357
B182: 174 | C182: 2015-09-07 | D182: 1.1146 | J182: -0.001434463219 | N182: -6610.983496
B183: 175 | C183: 2015-09-08 | D183: 1.1162 | J183: 0.002062688503 | N183: 9506.273477
B184: 176 | C184: 2015-09-09 | D184: 1.1139 | J184: -0.004121131079 | N184: -18992.97883
B185: 177 | C185: 2015-09-10 | D185: 1.1185 | J185: -0.007393255072 | N185: -34073.15476
B186: 178 | C186: 2015-09-11 | D186: 1.1268 | J186: -0.003278255716 | N186: -15108.43509
B187: 179 | C187: 2015-09-14 | D187: 1.1305 | J187: -0.001325967045 | N187: -6110.959233
B188: 180 | C188: 2015-09-15 | D188: 1.132 | J188: 0.008160414275 | N188: 37608.74687
B189: 181 | C189: 2015-09-16 | D189: 1.1228 | J189: -0.007453450655 | N189: -34350.57701
B190: 182 | C190: 2015-09-17 | D190: 1.1312 | J190: -0.009414525565 | N190: -43388.54584
B191: 183 | C191: 2015-09-18 | D191: 1.1419 | J191: 0.01491050607 | N191: 68717.7672
B192: 184 | C192: 2015-09-21 | D192: 1.125 | J192: 0.008480300766 | N192: 39083.00169
B193: 185 | C193: 2015-09-22 | D193: 1.1155 | J193: 0.0004483299784 | N193: 2066.209889
B194: 186 | C194: 2015-09-23 | D194: 1.115 | J194: -0.008128310574 | N194: -37460.79115
B195: 187 | C195: 2015-09-24 | D195: 1.1241 | J195: 0.008038628496 | N195: 37047.47505
B196: 188 | C196: 2015-09-25 | D196: 1.1151 | J196: -0.001702433098 | N196: -7845.971207
B197: 189 | C197: 2015-09-28 | D197: 1.117 | J197: -0.003039244317 | N197: -14006.90778
B198: 190 | C198: 2015-09-29 | D198: 1.1204 | J198: 8.925782128e-05 | N198: 411.3608321
B199: 191 | C199: 2015-09-30 | D199: 1.1203 | J199: 0.004473079564 | N199: 20614.99715
B200: 192 | C200: 2015-10-01 | D200: 1.1153 | J200: -0.0006274369408 | N200: -2891.656757
... 576 more rows

Sheet CalculVAR
A1: VAR PARAMETRIQUE ET HISTORIQUE
C4: Saisie des devises 4 et 5 | F4: USD | G4: GBP | H4: CHF
E5: Portefeuille | F5: 5500000 | G5: -4500000 | H5: 2800000 | K5: PORTEFEUILLE
C6: Cours FX à la date | E6: 2014-01-02
C7: Contrevaleur Euro | L7: Réponse 1.1
C8: Cours FX à la date | E8: 2016-12-30 | F8: =1/Rates!D775 -> 0.8379420144
C9: Contrevaleur Euro | F9: =F5*F8 -> 4608681.079
C10: RESULTAT sur 3 ans | L10: Réponse 1.2
C12: RISQUE | E12: 0.02 | L12: Réponse 1.3
C14: STATISTIQUES | E14: moyenne
C15: sur les rendements | E15: écart type | L15: Réponse 2.1
E16: centile 5%
E17: centile 95% | K17: alpha | L17: beta
E18: alpha écart type | K18: =NORMSINV(0.95) -> 1.644853627
E20: param | L20: Réponse 4.0
E21: histo plus | L21: Réponse 4.1
E22: histo moins | L22: Réponse 4.2
E23: mc | L23: Réponse 4.3
L24: Réponse 4.4
F25: 1 | G25: 2 | H25: 3 | I25: Montant | J25: Dev | L25: Réponse 4.5
C26: Matrice de Corrélation | F26: USD | G26: GBP | H26: CHF | I26: =I4 -> 0 | J26: =J4 -> 0 | L26: Réponse 4.6
D27: 1 | E27: USD
D28: 2 | E28: GBP | L28: Réponse 2.2
D29: 3 | E29: CHF
D30: Montant | E30: SGD
D31: Dev | E31: THB
E32: déterminant
C33: Matrice de Variance Covariance | F33: USD | G33: GBP | H33: CHF | I33: =I26 -> 0 | J33: =J26 -> 0
E34: USD
E35: GBP
E36: CHF
E37: SGD
E38: THB
E39: déterminant
C41: Matrice de Cholesky sur Covariance | F41: USD | G41: GBP | H41: CHF | I41: =I33 -> 0 | J41: =J33 -> 0
E42: USD | L42: Réponse 2.3
E43: GBP
E44: CHF
E45: SGD
E46: THB
E47: déterminant | L47: Réponses 2.4
E49: VALEUR PROPRES
F51: 1 | G51: 2 | H51: 3 | I51: 4 | J51: 5
E52: VECTEURS PROPRES
L53: Réponses 2.5
E59: Component | F59: Pos Euro | I59: VAR MARGINALE | K59: VAR MARGINALE
E60: Gradient | G60: Component | I60: CALCUL | K60: SIMULATIONS
C61: Réponse 6.1
C62: Réponse 6.2
C63: Réponse 6.3
C64: Réponse 6.4
E67: Tableau des positions simulées: +1000 sur chaque position
C76: Réponse 7.1 | E76: ACP | F76: Projections | G76: VP | H76: Racine(VP) | J76: Var Facteur | L76: Var par Facteurs
C77: Réponse 7.2
C78: Réponse 7.3
G85: Déterminants | I85: produit des VP
I86: determinant de la VCV
I87: determinant de la matrice diagonale
E88: Matrice diagonale
F89: USD | G89: GBP | H89: CHF | I89: =I41 -> 0 | J89: =J41 -> 0
E90: USD
E91: GBP
E92: CHF
E93: SGD
E94: THB
E96: Matrice Racine Carrée
F97: USD | G97: GBP | H97: CHF | I97: =I89 -> 0 | J97: =J89 -> 0
E98: USD
E99: GBP
E100: CHF
E101: SGD
E102: THB

Sheet MonteCarlo
A1: QUASI MONTE CARLO | M1: MONTE CARLO CHOLESKY | V1: MONTE CARLO RACINE CARREE
M3: =CalculVAR!F5 -> 5500000 | N3: =CalculVAR!G5 -> -4500000 | O3: =CalculVAR!H5 -> 2800000 | V3: =M3 -> 5500000 | W3: =N3 -> -4500000 | X3: 2800000
B9: 3 | C9: 5 | D9: 7 | E9: 11 | F9: 13
B10: U1 | C10: U2 | D10: U3 | E10: U4 | F10: U5 | H10: N1 | I10: N2 | J10: N3 | K10: N4 | L10: N5 | M10: V1 | N10: V2 | O10: V3 | P10: V4 | Q10: V5 | R10: PORTEFEUILLE | V10: V1 | W10: V2 | X10: V3 | Y10: V4 | Z10: V5 | AA10: PORTEFEUILLE
A11: 1 | B11: =halton(B$9,$A11) -> 0.3333333333 | C11: =halton(C$9,$A11) -> 0.2
A12: 2 | B12: =halton(B$9,$A12) -> 0.6666666667 | C12: =halton(C$9,$A12) -> 0.4
A13: 3
A14: 4
A15: 5
A16: 6
A17: 7
A18: 8
A19: 9
A20: 10
A21: 11
A22: 12
A23: 13
A24: 14
A25: 15
A26: 16
A27: 17
A28: 18
A29: 19
A30: 20
A31: 21
A32: 22
A33: 23
A34: 24
A35: 25
A36: 26
A37: 27
A38: 28
A39: 29
A40: 30
A41: 31
A42: 32
A43: 33
A44: 34
A45: 35
A46: 36
A47: 37
A48: 38
A49: 39
A50: 40
A51: 41
A52: 42
A53: 43
A54: 44
A55: 45
A56: 46
A57: 47
A58: 48
A59: 49
A60: 50
A61: 51
A62: 52
A63: 53
A64: 54
A65: 55
A66: 56
A67: 57
A68: 58
A69: 59
A70: 60
A71: 61
A72: 62
A73: 63
A74: 64
A75: 65
A76: 66
A77: 67
A78: 68
A79: 69
A80: 70
A81: 71
A82: 72
A83: 73
A84: 74
A85: 75
A86: 76
A87: 77
A88: 78
A89: 79
A90: 80
A91: 81
A92: 82
A93: 83
A94: 84
A95: 85
A96: 86
A97: 87
A98: 88
A99: 89
A100: 90
A101: 91
A102: 92
A103: 93
A104: 94
A105: 95
A106: 96
A107: 97
A108: 98
A109: 99
A110: 100
A111: 101
A112: 102
A113: 103
A114: 104
A115: 105
A116: 106
A117: 107
A118: 108
A119: 109
A120: 110
A121: 111
A122: 112
A123: 113
A124: 114
A125: 115
A126: 116
A127: 117
A128: 118
A129: 119
A130: 120
A131: 121
A132: 122
A133: 123
A134: 124
A135: 125
A136: 126
A137: 127
A138: 128
A139: 129
A140: 130
A141: 131
A142: 132
A143: 133
A144: 134
A145: 135
A146: 136
A147: 137
A148: 138
A149: 139
A150: 140
A151: 141
A152: 142
A153: 143
A154: 144
A155: 145
A156: 146
A157: 147
A158: 148
A159: 149
A160: 150
A161: 151
A162: 152
A163: 153
A164: 154
A165: 155
A166: 156
A167: 157
A168: 158
A169: 159
A170: 160
A171: 161
A172: 162
A173: 163
A174: 164
A175: 165
A176: 166
A177: 167
A178: 168
A179: 169
A180: 170
A181: 171
A182: 172
A183: 173
A184: 174
A185: 175
A186: 176
A187: 177
A188: 178
A189: 179
A190: 180
A191: 181
A192: 182
A193: 183
A194: 184
A195: 185
A196: 186
A197: 187
A198: 188
A199: 189
A200: 190
A201: 191
A202: 192
A203: 193
A204: 194
A205: 195
A206: 196
... 1810 more rows

Sheet Réponses
C1: Numéro/Nom/ Prénom: /….. / ……………………/………………
A3: 1 | B3: 1 | C3: Contrevaleur Euro du Portefeuille au 2 janvier 14
A4: 1 | B4: 2 | C4: Résultat en euro entre le 2 1 2013 et le 30 12 2016
A5: 1 | B5: 3 | C5: Risque Forfaitaire 2% au 30 12 2016
A6: 2 | B6: 1 | C6: Ecart type sur la devise 4
A7: 2 | B7: 2 | C7: Corrélation entre devise 4 et devise 5
A8: 2 | B8: 3 | C8: Trace de la matrice de Cholesky sur VCV
A9: 2 | B9: 4 | C9: Valeurs Propres VCV
A15: 2 | B15: 5 | C15: Vecteur Propre 01
C21: VAR HISTORIQUE
A22: 3 | B22: 1 | C22: VAR sur GBP
A23: 3 | B23: 2 | C23: VAR sur la devise 4
A24: 3 | B24: 3 | C24: VAR sur le portefeuille dev4+dev5 sans correlation
A25: 3 | B25: 4 | C25: VAR sur le portefeuille dev4+dev5 avec correlation
A26: 3 | B26: 5 | C26: VAR sur le portefeuille avec corrélations nulles
A27: 3 | B27: 6 | C27: VAR sur le portefeuille
A28: 3 | B28: 7 | C28: ES sur le portefeuille
C29: VAR PARAMETRIQUE
A30: 4 | B30: 1 | C30: VAR sur GBP
A31: 4 | B31: 2 | C31: VAR sur la devise 4
A32: 4 | B32: 3 | C32: VAR sur le portefeuille dev4+dev5 sans correlation
A33: 4 | B33: 4 | C33: VAR sur le portefeuille dev4+dev5 avec correlation
A34: 4 | B34: 5 | C34: VAR sur le portefeuille avec corrélations nulles
A35: 4 | B35: 6 | C35: VAR sur le portefeuille
A36: 4 | B36: 7 | C36: ES sur le portefeuille
C37: VARComponent sur le portefeuille
C38: Gradient
A39: 5 | B39: 1 | C39: USD
A40: 5 | B40: 2 | C40: GBP
A41: 5 | B41: 3 | C41: CHF
A42: 5 | B42: 4 | C42: DEV 4
A43: 5 | B43: 5 | C43: DEV 5
C44: VAR Component
A45: 5 | B45: 6 | C45: USD
A46: 5 | B46: 7 | C46: GBP
A47: 5 | B47: 8 | C47: CHF
A48: 5 | B48: 9 | C48: DEV 4
A49: 5 | B49: 10 | C49: DEV 5
C50: VAR Marginale
A51: 5 | B51: 11 | C51: USD
A52: 5 | B52: 12 | C52: GBP
A53: 5 | B53: 13 | C53: CHF
A54: 5 | B54: 14 | C54: DEV 4
A55: 5 | B55: 15 | C55: DEV 5
C56: Par Simulations
A57: 5 | B57: 16 | C57: USD
A58: 5 | B58: 17 | C58: GBP
A59: 5 | B59: 18 | C59: CHF
A60: 5 | B60: 19 | C60: DEV 4
A61: 5 | B61: 20 | C61: DEV 5
C62: Projection du Portefeuille
A63: 6 | B63: 1 | C63: Facteur 01
A64: 6 | B64: 2 | C64: Facteur 02
A65: 6 | B65: 3 | C65: Facteur 03
A66: 6 | B66: 4 | C66: Facteur 04
A67: 6 | B67: 5 | C67: Facteur 05
C68: VAR sur chaque Axe de projection
A69: 6 | B69: 6 | C69: Facteur 01
A70: 6 | B70: 7 | C70: Facteur 02
A71: 6 | B71: 8 | C71: Facteur 03
A72: 6 | B72: 9 | C72: Facteur 04
A73: 6 | B73: 10 | C73: Facteur 05
C74: VAR PROGRESSIVE
A75: 6 | B75: 11 | C75: Facteur 01
A76: 6 | B76: 12 | C76: Facteur 02
A77: 6 | B77: 13 | C77: Facteur 03
A78: 6 | B78: 14 | C78: Facteur 04
A79: 6 | B79: 15 | C79: Facteur 05
C80: Cholesky
A81: 7 | B81: 1 | C81: VAR Monte Carlo sur USD
A82: 7 | B82: 2 | C82: VAR Monte Carlo sur les devise 4
A83: 7 | B83: 3 | C83: VAR Monte Carlo sur les devises 4 et 5
A84: 7 | B84: 4 | C84: VAR Monte Carlo sur le Portefeuille
A85: 7 | B85: 5 | C85: ES Monte Carlo sur le Portefeuille
A86: 7 | B86: 6 | C86: VAR Antithétique
C87: Racine Carrée
A88: 8 | B88: 1 | C88: VAR Monte Carlo sur USD
A89: 8 | B89: 2 | C89: VAR Monte Carlo sur les devise 4
A90: 8 | B90: 3 | C90: VAR Monte Carlo sur les devises 4 et 5
A91: 8 | B91: 4 | C91: VAR Monte Carlo sur le Portefeuille
A92: 8 | B92: 5 | C92: ES Monte Carlo sur le Portefeuille
A93: 8 | B93: 6 | C93: VAR Antithétique
C94: VAR MINIMALE
C95: Portefeuille
A96: 9 | B96: 1 | C96: USD
A97: 9 | B97: 2 | C97: GBP
A98: 9 | B98: 3 | C98: CHF
A99: 9 | B99: 4 | C99: DEV 4
A100: 9 | B100: 5 | C100: DEV 5
C101: Gradient
A102: 9 | B102: 6 | C102: USD
A103: 9 | B103: 7 | C103: GBP
A104: 9 | B104: 8 | C104: CHF
A105: 9 | B105: 9 | C105: DEV 4
A106: 9 | B106: 10 | C106: DEV 5
C107: VARC
A108: 9 | B108: 11 | C108: USD
A109: 9 | B109: 12 | C109: GBP
A110: 9 | B110: 13 | C110: CHF
A111: 9 | B111: 14 | C111: DEV 4
A112: 9 | B112: 15 | C112: DEV 5
C113: Projections
A114: 9 | B114: 16 | C114: USD
A115: 9 | B115: 17 | C115: GBP
A116: 9 | B116: 18 | C116: CHF
A117: 9 | B117: 19 | C117: DEV 4
A118: 9 | B118: 20 | C118: DEV 5
C119: VAR ACP
A120: 9 | B120: 21 | C120: USD
A121: 9 | B121: 22 | C121: GBP
A122: 9 | B122: 23 | C122: CHF
A123: 9 | B123: 24 | C123: DEV 4
A124: 9 | B124: 25 | C124: DEV 5
